{"text_format":"1","workbook":"xlsx","n_sheets":2,"sheets":["Data","Sheet1"],"not_rendered":{"charts":0,"images":0,"macros":1,"external_links":0,"defined_names":0,"comments":0,"pivot_tables":0},"unopened":[],"bounds":{"document_bytes":16777216,"sheet_cells":100000,"rows_first":2000,"rows_last":500,"rows_between":2000,"halvings":0,"cell_chars":16384,"cell_head_chars":4096},"cells_cut":0,"cells_raw":0,"read":"whole","date_system":"1900"}

{"sheet":"Data","index":0,"n_rows":10,"n_cols":7,"rows_kept":10,"cut":false,"hidden":false,"merged":[]}
[null,null,null,"نام و نام خانوادگی",null,null,"مشتری"]
[null,null,null,"نادر بحری",null,null,"آفیس باز"]
[null,null,null,"ارسلان بحری",null,null,"ارسال شد"]
[null,null,null,"کامران کسبیان",null,null,"تجهیز دمای آسای"]
[null,null,null,"محمد نادری",null,null,"گروه بهمن"]
[null,null,null,"میلاد نجفی",null,null,"گروه فروردین"]
[null,null,null,"اسماعیل حسینی",null,null,"دخانیات گیلان"]
[null,null,null,null,null,null,"اروند پلاست"]
[null,null,null,null,null,null,"تهران زیبا"]
[null,null,null,null,null,null,"زیبا گستران دیبا"]

{"sheet":"Sheet1","index":1,"n_rows":255,"n_cols":8,"rows_kept":255,"cut":false,"hidden":false,"merged":[]}
["ردیف","گروه کاری ","مشتری","شهر","نام و نام خانوادگی","ساعت شروع","ساعت پایان","مدت زمان انجام "]
[{"$f":"IF(NOT(ISBLANK(E2)),ROW()-ROW($A$1),\"\")","v":1},null,"گروه فروردین",null,"میلاد نجفی","10:57:00","12:00:00",{"$f":"IF(NOT(ISBLANK(G2)),IF(NOT(ISBLANK(E2)),G2-F2,\"\"),\"\")","v":"01:03:00"}]
[{"$f":"IF(NOT(ISBLANK(E3)),ROW()-ROW($A$1),\"\")","v":2},null,"تهران زیبا",null,"کامران کسبیان","10:58:00","12:20:00",{"$f":"IF(NOT(ISBLANK(G3)),IF(NOT(ISBLANK(E3)),G3-F3,\"\"),\"\")","v":"01:22:00"}]
[3,null,"زیبا گستران دیبا",null,"اسماعیل حسینی","10:58:00",null,""]
["",null,null,null,null,null,null,""]
["",null,null,null,null,null,null,""]
["",null,null,null,null,null,null,""]
["",null,null,null,null,null,null,""]
["",null,null,null,null,null,null,""]
["",null,null,null,null,null,null,""]
["",null,null,null,null,null,null,""]
["",null,null,null,null,null,null,""]
["",null,null,null,null,null,null,""]
["",null,null,null,null,null,null,""]
["",null,null,null,null,null,null,""]
["",null,null,null,null,null,null,""]
["",null,null,null,null,null,null,""]
["",null,null,null,null,null,null,""]
["",null,null,null,null,null,null,""]
["",null,null,null,null,null,null,""]
["",null,null,null,null,null,null,""]
["",null,null,null,null,null,null,""]
["",null,null,null,null,null,null,""]
["",null,null,null,null,null,null,""]
["",null,null,null,null,null,null,""]
["",null,null,null,null,null,null,""]
["",null,null,null,null,null,null,""]
["",null,null,null,null,null,null,""]
["",null,null,null,null,null,null,""]
["",null,null,null,null,null,null,""]
["",null,null,null,null,null,null,""]
["",null,null,null,null,null,null,""]
["",null,null,null,null,null,null,""]
["",null,null,null,null,null,null,""]
["",null,null,null,null,null,null,""]
["",null,null,null,null,null,null,""]
["",null,null,null,null,null,null,""]
["",null,null,null,null,null,null,""]
["",null,null,null,null,null,null,""]
["",null,null,null,null,null,null,""]
["",null,null,null,null,null,null,""]
["",null,null,null,null,null,null,""]
["",null,null,null,null,null,null,""]
["",null,null,null,null,null,null,""]
["",null,null,null,null,null,null,""]
["",null,null,null,null,null,null,""]
["",null,null,null,null,null,null,""]
["",null,null,null,null,null,null,""]
["",null,null,null,null,null,null,""]
["",null,null,null,null,null,null,""]
["",null,null,null,null,null,null,""]
["",null,null,null,null,null,null,""]
["",null,null,null,null,null,null,""]
["",null,null,null,null,null,null,""]
["",null,null,null,null,null,null,""]
["",null,null,null,null,null,null,""]
["",null,null,null,null,null,null,""]
["",null,null,null,null,null,null,""]
["",null,null,null,null,null,null,""]
["",null,null,null,null,null,null,""]
["",null,null,null,null,null,null,""]
["",null,null,null,null,null,null,""]
["",null,null,null,null,null,null,""]
["",null,null,null,null,null,null,""]
["",null,null,null,null,null,null,""]
["",null,null,null,null,null,null,""]
[{"$f":"IF(NOT(ISBLANK(E67)),ROW()-ROW($A$1),\"\")","v":""},null,null,null,null,null,null,{"$f":"IF(NOT(ISBLANK(G67)),IF(NOT(ISBLANK(E67)),G67-F67,\"\"),\"\")","v":""}]
["",null,null,null,null,null,null,""]
["",null,null,null,null,null,null,""]
["",null,null,null,null,null,null,""]
["",null,null,null,null,null,null,""]
["",null,null,null,null,null,null,""]
["",null,null,null,null,null,null,""]
["",null,null,null,null,null,null,""]
["",null,null,null,null,null,null,""]
["",null,null,null,null,null,null,""]
["",null,null,null,null,null,null,""]
["",null,null,null,null,null,null,""]
["",null,null,null,null,null,null,""]
["",null,null,null,null,null,null,""]
["",null,null,null,null,null,null,""]
["",null,null,null,null,null,null,""]
["",null,null,null,null,null,null,""]
["",null,null,null,null,null,null,""]
["",null,null,null,null,null,null,""]
["",null,null,null,null,null,null,""]
["",null,null,null,null,null,null,""]
["",null,null,null,null,null,null,""]
["",null,null,null,null,null,null,""]
["",null,null,null,null,null,null,""]
["",null,null,null,null,null,null,""]
["",null,null,null,null,null,null,""]
["",null,null,null,null,null,null,""]
["",null,null,null,null,null,null,""]
["",null,null,null,null,null,null,""]
["",null,null,null,null,null,null,""]
["",null,null,null,null,null,null,""]
["",null,null,null,null,null,null,""]
["",null,null,null,null,null,null,""]
["",null,null,null,null,null,null,""]
["",null,null,null,null,null,null,""]
["",null,null,null,null,null,null,""]
["",null,null,null,null,null,null,""]
["",null,null,null,null,null,null,""]
["",null,null,null,null,null,null,""]
["",null,null,null,null,null,null,""]
["",null,null,null,null,null,null,""]
["",null,null,null,null,null,null,""]
["",null,null,null,null,null,null,""]
["",null,null,null,null,null,null,""]
["",null,null,null,null,null,null,""]
["",null,null,null,null,null,null,""]
["",null,null,null,null,null,null,""]
["",null,null,null,null,null,null,""]
["",null,null,null,null,null,null,""]
["",null,null,null,null,null,null,""]
["",null,null,null,null,null,null,""]
["",null,null,null,null,null,null,""]
["",null,null,null,null,null,null,""]
["",null,null,null,null,null,null,""]
["",null,null,null,null,null,null,""]
["",null,null,null,null,null,null,""]
["",null,null,null,null,null,null,""]
["",null,null,null,null,null,null,""]
["",null,null,null,null,null,null,""]
["",null,null,null,null,null,null,""]
["",null,null,null,null,null,null,""]
["",null,null,null,null,null,null,""]
["",null,null,null,null,null,null,""]
["",null,null,null,null,null,null,""]
[{"$f":"IF(NOT(ISBLANK(E131)),ROW()-ROW($A$1),\"\")","v":""},null,null,null,null,null,null,{"$f":"IF(NOT(ISBLANK(G131)),IF(NOT(ISBLANK(E131)),G131-F131,\"\"),\"\")","v":""}]
["",null,null,null,null,null,null,""]
["",null,null,null,null,null,null,""]
["",null,null,null,null,null,null,""]
["",null,null,null,null,null,null,""]
["",null,null,null,null,null,null,""]
["",null,null,null,null,null,null,""]
["",null,null,null,null,null,null,""]
["",null,null,null,null,null,null,""]
["",null,null,null,null,null,null,""]
["",null,null,null,null,null,null,""]
["",null,null,null,null,null,null,""]
["",null,null,null,null,null,null,""]
["",null,null,null,null,null,null,""]
["",null,null,null,null,null,null,""]
["",null,null,null,null,null,null,""]
["",null,null,null,null,null,null,""]
["",null,null,null,null,null,null,""]
["",null,null,null,null,null,null,""]
["",null,null,null,null,null,null,""]
["",null,null,null,null,null,null,""]
["",null,null,null,null,null,null,""]
["",null,null,null,null,null,null,""]
["",null,null,null,null,null,null,""]
["",null,null,null,null,null,null,""]
["",null,null,null,null,null,null,""]
["",null,null,null,null,null,null,""]
["",null,null,null,null,null,null,""]
["",null,null,null,null,null,null,""]
["",null,null,null,null,null,null,""]
["",null,null,null,null,null,null,""]
["",null,null,null,null,null,null,""]
["",null,null,null,null,null,null,""]
["",null,null,null,null,null,null,""]
["",null,null,null,null,null,null,""]
["",null,null,null,null,null,null,""]
["",null,null,null,null,null,null,""]
["",null,null,null,null,null,null,""]
["",null,null,null,null,null,null,""]
["",null,null,null,null,null,null,""]
["",null,null,null,null,null,null,""]
["",null,null,null,null,null,null,""]
["",null,null,null,null,null,null,""]
["",null,null,null,null,null,null,""]
["",null,null,null,null,null,null,""]
["",null,null,null,null,null,null,""]
["",null,null,null,null,null,null,""]
["",null,null,null,null,null,null,""]
["",null,null,null,null,null,null,""]
["",null,null,null,null,null,null,""]
["",null,null,null,null,null,null,""]
["",null,null,null,null,null,null,""]
["",null,null,null,null,null,null,""]
["",null,null,null,null,null,null,""]
["",null,null,null,null,null,null,""]
["",null,null,null,null,null,null,""]
["",null,null,null,null,null,null,""]
["",null,null,null,null,null,null,""]
["",null,null,null,null,null,null,""]
["",null,null,null,null,null,null,""]
["",null,null,null,null,null,null,""]
["",null,null,null,null,null,null,""]
["",null,null,null,null,null,null,""]
["",null,null,null,null,null,null,""]
[{"$f":"IF(NOT(ISBLANK(E195)),ROW()-ROW($A$1),\"\")","v":""},null,null,null,null,null,null,{"$f":"IF(NOT(ISBLANK(G195)),IF(NOT(ISBLANK(E195)),G195-F195,\"\"),\"\")","v":""}]
["",null,null,null,null,null,null,""]
["",null,null,null,null,null,null,""]
["",null,null,null,null,null,null,""]
["",null,null,null,null,null,null,""]
["",null,null,null,null,null,null,""]
["",null,null,null,null,null,null,""]
["",null,null,null,null,null,null,""]
["",null,null,null,null,null,null,""]
["",null,null,null,null,null,null,""]
["",null,null,null,null,null,null,""]
["",null,null,null,null,null,null,""]
["",null,null,null,null,null,null,""]
["",null,null,null,null,null,null,""]
["",null,null,null,null,null,null,""]
["",null,null,null,null,null,null,""]
["",null,null,null,null,null,null,""]
["",null,null,null,null,null,null,""]
["",null,null,null,null,null,null,""]
["",null,null,null,null,null,null,""]
["",null,null,null,null,null,null,""]
["",null,null,null,null,null,null,""]
["",null,null,null,null,null,null,""]
["",null,null,null,null,null,null,""]
["",null,null,null,null,null,null,""]
["",null,null,null,null,null,null,""]
["",null,null,null,null,null,null,""]
["",null,null,null,null,null,null,""]
["",null,null,null,null,null,null,""]
["",null,null,null,null,null,null,""]
["",null,null,null,null,null,null,""]
["",null,null,null,null,null,null,""]
["",null,null,null,null,null,null,""]
["",null,null,null,null,null,null,""]
["",null,null,null,null,null,null,""]
["",null,null,null,null,null,null,""]
["",null,null,null,null,null,null,""]
["",null,null,null,null,null,null,""]
["",null,null,null,null,null,null,""]
["",null,null,null,null,null,null,""]
["",null,null,null,null,null,null,""]
["",null,null,null,null,null,null,""]
["",null,null,null,null,null,null,""]
["",null,null,null,null,null,null,""]
["",null,null,null,null,null,null,""]
["",null,null,null,null,null,null,""]
["",null,null,null,null,null,null,""]
["",null,null,null,null,null,null,""]
["",null,null,null,null,null,null,""]
["",null,null,null,null,null,null,""]
["",null,null,null,null,null,null,""]
["",null,null,null,null,null,null,""]
["",null,null,null,null,null,null,""]
["",null,null,null,null,null,null,""]
["",null,null,null,null,null,null,""]
["",null,null,null,null,null,null,""]
["",null,null,null,null,null,null,""]
["",null,null,null,null,null,null,""]
["",null,null,null,null,null,null,""]
["",null,null,null,null,null,null,""]
["",null,null,null,null,null,null,""]